Cogmind - Beta 15 @@@ ROGUE MODE // 2025.06.21 @ 15:46:08 Player: Fleshy Vegetable Bird Result: Destroyed by G-73 Enforcer with Phase Gun Performance ------------- Evolutions (7) 3500 Regions Visited (16) 3200 Robots Destroyed (168) 840 Value Destroyed (4703) 4703 Prototype IDs (28) 560 Alien Tech Used (0) 0 Bonus (2025) 2025 TOTAL SCORE: 14828 Bonus ------- High Alert Combat Kills 214 Follower Combat Kills 823 Registered with UFD 300 Met Optimus in HQ 500 Met Imprinter 300 Friendly Fire -112 Cogmind --------- Core Integrity 0/1300 Matter 300/300 Energy 98/100 System Corruption 5% Temperature Cool (9) Movement Core (50) Location -3/Research Parts ------- > --- POWER (2) -------- (None) > --- PROPULSION (6) --- (None) > --- UTILITY (10) ----- (None) > --- WEAPON (3) ------- (None) > --- INVENTORY (5) ---- Neutrino Core Long-range Sensor Array Improved Cloaking Device Mini Drone Bay (3/3) Power Maul Peak State ------------ > --- POWER ------------ Micro Fission Core Light Antimatter Reactor > --- PROPULSION ------- Antigrav System Linear Gravjet Linear Gravjet Linear Gravjet Linear Gravjet > --- UTILITY ---------- Machine Analyzer Advanced Sensor Array Advanced Signal Interpreter Improved Terrain Scanner Improved Transmission Jammer Enhanced Scrap Shield Makeshift Hacking Suite Authchip [R/Combat] > --- WEAPON ----------- Coil Gun Improved Heavy Machine Gun Ripper > --- INVENTORY -------- Linear Gravjet Large Storage Unit Advanced ECM Suite Variable Charge Gun Railgun [Rating: 102] Favorites ----------- Power Antimatter Reactor Engine Light Deuterium Engine Power Core Neutrino Core Reactor Antimatter Reactor Propulsion Wheel Treads Medium Treads Leg Makeshift Leg Wheel Wheel Hover Unit Linear Gravjet Utility Advanced Signal Interpreter Device Improved Sensor Array Storage High-capacity Storage Unit Processor Advanced Signal Interpreter Hackware Makeshift Hacking Suite Protection Hardened Medium Armor Plating Weapon Shock Maul Energy Gun Plasma Rifle Energy Cannon Improved EM Pulse Cannon Ballistic Gun Shotgun Ballistic Cannon Magnetic Acceleration Cannon Launcher Improved Proton Missile Launcher Special Weapon CPS Tube Impact Weapon Shock Maul Slashing Weapon Power Sword Build | -11 -10 -10 -8 -8 -6 -6 -6 -6 -6 -6 -5 -5 -4 -4 -4 -3 ------- Run | Yrd Mat Sub Rec Scr Fac Was Fac Low Low Zio Pro Fac Fac Ext Cet Res Slots Evolved 14 | . . . . . 8 . . . . . . 2 2 . . 2 Power 1 | . . . . . . . . . . . . . 1 . . . Propulsion 4 | . . . . . 3 . . . . . . . . . . 1 Utility 8 | . . . . . 4 . . . . . . 2 1 . . 1 Weapon 1 | . . . . . 1 . . . . . . . . . . . Parts Attached 210 | 8 6 12 6 3 14 5 46 4 4 1 6 40 23 28 . 4 Power 24 | 1 1 1 2 1 1 . 1 2 . 1 2 3 3 4 . 1 Engine 10 | 1 1 1 1 1 1 . . 1 . 1 2 . . . . . Core 9 | . . . 1 . . . . 1 . . . 3 1 2 . 1 Reactor 5 | . . . . . . . 1 . . . . . 2 2 . . Propulsion 71 | 3 3 3 1 1 4 1 13 1 1 . 2 17 11 10 . . Treads 18 | . 1 . . 1 . . 6 . . . 1 5 1 3 . . Leg 6 | . . . . . . . . . . . 1 . . 5 . . Wheel 35 | 3 2 3 1 . 4 1 7 1 1 . . 8 2 2 . . Hover 12 | . . . . . . . . . . . . 4 8 . . . Flight . | . . . . . . . . . . . . . . . . . Utility 66 | 2 . 1 2 1 6 3 20 1 . . 2 12 7 6 . 3 Device 37 | 1 . 1 . . 4 2 14 . . . . 4 4 5 . 2 Storage 7 | 1 . . 1 1 . . 1 . . . 1 1 1 . . . Processor 9 | . . . . . . . 3 . . . . 4 1 . . 1 Hackware 4 | . . . . . . . 1 . . . . 2 1 . . . Protection 9 | . . . 1 . 2 1 1 1 . . 1 1 . 1 . . Artifact . | . . . . . . . . . . . . . . . . . Weapon 49 | 2 2 7 1 . 3 1 12 . 3 . . 8 2 8 . . Energy Gun 8 | . . 1 . . . . 2 . . . . 3 . 2 . . Energy Cannon 7 | . . 2 . . 1 . 1 . . . . 2 . 1 . . Ballistic Gun 17 | 2 2 2 1 . . . 3 . 2 . . 1 2 2 . . Ballistic Cannon 3 | . . . . . . . 1 . 1 . . . . 1 . . Launcher 8 | . . 2 . . 1 . 3 . . . . 1 . 1 . . Special Weapon 1 | . . . . . . 1 . . . . . . . . . . Impact Weapon 3 | . . . . . . . 2 . . . . . . 1 . . Slashing Weapon 2 | . . . . . 1 . . . . . . 1 . . . . Piercing Weapon . | . . . . . . . . . . . . . . . . . Special Melee Weapon . | . . . . . . . . . . . . . . . . . Unidentified Prototypes 11 | . . . . . . . 9 . . . 1 . . 1 . . Parts Lost 83 | . 1 3 1 . 6 3 3 2 . . 5 27 13 14 1 4 Power 10 | . . 1 . . . 1 . 1 . . 1 1 3 2 . . Propulsion 38 | . 1 1 1 . 2 1 2 1 . . 3 14 4 6 . 2 Utility 21 | . . . . . 3 . 1 . . . 1 5 5 3 1 2 Weapon 14 | . . 1 . . 1 1 . . . . . 7 1 3 . . Highest Loss Streak 21 | . 1 2 1 . 3 4 1 1 . . 2 21 6 7 1 3 To Critical Strikes 3 | . . . . . . . . . . . . 2 . 1 . . Average Backups 11 | 2 6 7 7 8 8 7 14 14 15 15 16 14 4 4 4 4 Power . | . . . . . . . . . 1 1 . . . . 1 . Propulsion . | . 2 1 . . . . . . . . . . . . . . Utility 8 | . . . 3 4 4 4 10 12 12 13 13 10 1 2 2 3 Weapon 2 | . 3 4 3 2 1 1 1 1 1 1 2 3 1 1 1 . Tool/Special . | . . . . . . . . . . . . . . . . . Unused Backups 28 | 2 4 . . 2 . . 5 . . 1 . 6 2 3 . 3 Power 4 | . 1 . . . . . 1 . . . . . . 2 . . Propulsion 2 | 1 . . . . . . . . . . . . . 1 . . Utility 16 | 1 . . . 2 . . 2 . . 1 . 5 2 . . 3 Weapon 5 | . 3 . . . . . 1 . . . . 1 . . . . Tool/Special 1 | . . . . . . . 1 . . . . . . . . . Average Slot Usage (%) 90 | . 99 95 87 97 79 71 96 96 98 100 90 87 75 57 33 33 Engine 4 | . 14 12 . 9 6 1 . 5 6 6 5 2 . . . . Core 1 | . . . 12 4 . . . . . . . 2 4 3 . 1 Reactor 1 | . . . . . . . 5 . . . . . 3 3 . . Treads 12 | . 9 8 . 11 5 . 11 20 20 20 22 11 . 2 5 3 Wheel 11 | . 18 17 16 14 15 26 18 10 11 13 2 6 . 1 5 2 Device 15 | . 14 14 2 . 16 12 23 25 20 20 17 11 8 7 10 8 Storage 7 | . 14 14 14 14 6 6 6 6 6 6 6 5 . . . . Processor 5 | . . . . . . . 5 6 6 6 6 14 12 10 10 12 Hackware 1 | . . . . . . . . . . . . 5 10 5 2 . Protection 4 | . . . 11 14 7 8 2 . 5 6 5 2 3 1 . . Ballistic Gun 10 | . 28 8 28 28 8 . 8 13 7 6 6 1 3 2 . . Ballistic Cannon 1 | . . . . . . . . . 5 6 6 1 . 2 . . Impact Weapon 2 | . . . . . . . 1 6 5 6 6 3 . 1 . 2 Slashing Weapon 1 | . . . . . 4 6 4 . . . . 1 4 . . . Peak Build Rating 102 | 7 10 12 14 18 46 41 73 71 66 67 69 77 102 84 32 49 Average Rating 51 | 5 8 9 12 15 37 34 65 66 64 66 65 68 81 54 29 35 On Entrance 36 | . 7 10 9 13 18 31 41 70 64 65 67 69 70 34 32 28 Naked Turns 1 | . . . . . . . . . . . . . . . . 1 Heaviest Build 94 | 12 17 28 26 38 58 49 85 83 93 83 93 94 61 52 3 21 Greatest Support 106 | 26 20 20 26 16 46 56 86 20 20 20 106 78 49 60 10 27 Greatest Overweight (x) 17 | 2 1 2 2 2 4 . 7 8 9 4 4 17 3 3 . 2 Average Overweight (x) 1 | . . . 1 1 1 . 2 4 3 3 . 1 . . . . Largest Inventory Capacity 20 | 8 8 8 10 15 15 15 20 20 20 20 20 20 15 5 5 5 Average Capacity 15 | 7 8 8 9 12 15 15 19 20 20 20 20 19 5 5 5 5 Most Carried 20 | 5 8 8 10 15 15 15 20 20 20 20 20 20 6 5 4 5 Average Carried 15 | 2 6 7 9 10 13 13 19 19 19 19 19 17 4 4 4 4 Final Capacity 20 | 8 8 8 10 15 15 15 20 20 20 20 20 5 5 5 5 5 Final Carried 20 | 3 8 8 10 15 14 15 20 20 20 20 20 4 5 4 4 5 Class Distribution -------------------- 31% | Mutant 30% | Scavenger-Assassin 28% | Scavenger-Mutant 3% | Assassin Dominant Class ---------------- Mutant | -10/Materials Mutant | -10/Subcaves Mutant | -8/Recycling Mutant | -8/Scraptown Scavenger-Mutant | -6/Factory Scavenger-Mutant | -6/Waste Scavenger-Assassin | -6/Factory Scavenger-Assassin | -6/Lower Caves Scavenger-Mutant | -6/Lower Caves Scavenger-Mutant | -6/Zion Mutant | -5/Proximity Caves Scavenger-Assassin | -5/Factory Scout | -4/Factory Scavenger-Mutant | -4/Extension Mutant | -4/Cetus Scavenger-Assassin | -3/Research Resources | -11 -10 -10 -8 -8 -6 -6 -6 -6 -6 -6 -5 -5 -4 -4 -4 -3 ----------- Run | Yrd Mat Sub Rec Scr Fac Was Fac Low Low Zio Pro Fac Fac Ext Cet Res Matter Collected 5754 | 249 282 349 202 61 176 . 1487 419 435 38 623 689 298 431 . 15 Remotely . | . . . . . . . . . . . . . . . . . Salvage Created 7479 | 96 402 130 58 . 283 114 2525 142 227 . 271 1786 690 755 . . Parts 331 | 11 37 15 2 . 18 10 110 3 3 . 14 55 29 24 . . Haulers Intercepted 11 | . 1 . . . . . 6 . . . . 2 2 . . . Recyclers Shooed 11 | . . . 1 . 1 . 6 . . . . . 1 2 . . Parts Field Recycled . | . . . . . . . . . . . . . . . . . Retrieved Matter . | . . . . . . . . . . . . . . . . . Parts Self-Destructed 34 | . . 5 . . . . . 9 4 . 16 . . . . . Prevented 3 | . . . . . . . . . 3 . . . . . . . Kills | -11 -10 -10 -8 -8 -6 -6 -6 -6 -6 -6 -5 -5 -4 -4 -4 -3 ------- Run | Yrd Mat Sub Rec Scr Fac Was Fac Low Low Zio Pro Fac Fac Ext Cet Res Combat Hostiles Destroyed 86 | . 8 11 . . 3 1 18 2 2 . 10 20 1 10 . . Melee 15 | . . . . . . . 6 . . . . 8 1 . . . Guns 34 | . 8 1 . . 2 . 6 2 1 . 6 4 . 4 . . Cannons 11 | . . 1 . . . 1 . . . . 4 2 . 3 . . AOE 21 | . . 9 . . 1 . 5 . . . . 3 . 3 . . Classes Destroyed 20 | 2 5 2 . . 3 1 4 . 2 . 1 . . . . . Worker 27 | . . . . . 5 . 8 . . . . 13 1 . . . Builder 7 | . 1 . . . . . 3 . . . . 2 1 . . . Tunneler 10 | 2 2 . . . . . 3 . . . . 3 . . . . Hauler 11 | . 1 . . . . . 6 . . . . 2 2 . . . Recycler 16 | 1 . . 1 . . . 6 . . . . 3 3 2 . . Minesweeper 1 | . . . . . . . . . 1 . . . . . . . Mechanic 1 | . . . . . . . 1 . . . . . . . . . Operator 2 | . . . . . . . 1 . . . . 1 . . . . Drone 2 | . . . . . . . . . . . 2 . . . . . Turret 2 | . . 2 . . . . . . . . . . . . . . Watcher 5 | . 2 . . . . . 1 . . . . 1 1 . . . Swarmer 27 | . 3 7 . . . . 5 . . . 3 5 . 4 . . Grunt 15 | . 5 . . . . . 4 . . . 3 . . 3 . . Brawler 1 | . . . . . . . 1 . . . . . . . . . Sentry 11 | . . . . . 1 . 2 1 1 . 1 3 . 2 . . Hunter 10 | . . . . . 2 . . . . . 1 7 . . . . Programmer 13 | . . . . . . . 6 . . . . 5 1 1 . . Compactor 1 | . . . . . . 1 . . . . . . . . . . Subdweller 4 | . . 4 . . . . . . . . . . . . . . Thug 1 | . . . . . . . . 1 . . . . . . . . Mutant 1 | . . . . . . . . . 1 . . . . . . . Best Kill Streak 6 | 3 4 4 1 . 2 1 6 1 1 . 3 6 3 5 . . Combat Bots Only 5 | . 2 4 . . 1 1 4 1 1 . 3 4 1 5 . . Max Kills in Single Turn 3 | 1 1 3 1 . 1 1 3 1 1 . 1 3 1 2 . . Gunslinging . | . . . . . . . . . . . . . . . . . Exploded 3 | . . 3 . . 1 . 3 . . . . 3 . 2 . . Melee 1 | . . . . . . . 1 . . . . 1 1 . . . Uniques/NPCs Destroyed . | . . . . . . . . . . . . . . . . . Combat | -11 -10 -10 -8 -8 -6 -6 -6 -6 -6 -6 -5 -5 -4 -4 -4 -3 -------- Run | Yrd Mat Sub Rec Scr Fac Was Fac Low Low Zio Pro Fac Fac Ext Cet Res Hostile Shots Fired 1403 | . 42 82 4 . 115 . 190 46 21 . 125 332 129 173 13 131 Missed 465 | . 13 35 3 . 45 . 59 18 5 . 43 83 45 61 4 51 Hits 938 | . 29 47 1 . 70 . 131 28 16 . 82 249 84 112 9 80 Projectile 938 | . 29 47 1 . 70 . 131 28 16 . 82 249 84 112 9 80 AOE 2 | . . . . . . . . . . . . 1 1 . . . Critical Strikes 30 | . . 2 . . . . 4 . . . 2 9 1 8 1 3 Part Disruptions 2 | . . . . . . . . . . . . 2 . . . . Damage Taken 15865 | . 297 762 14 . 831 313 1928 241 84 . 1046 4203 1597 2575 248 1726 Core 3986 | . 72 137 . . 32 123 361 10 . . 132 768 233 722 80 1316 Absorbed by Shields 653 | . . . . . . . 375 12 32 . 198 36 . . . . Redirected to Shielding 81 | . . . . . . . 81 . . . . . . . . . Ignored by Resistances 587 | . . . . . . . 217 18 17 . 36 299 . . . . Regen/Repaired (Parts) 159 | . . . . . . . 100 . . 59 . . . . . . Core Remaining (%) 34 | 100 . . . 16 . . . . . . 22 23 . . 10 . Volleys Fired 302 | 24 41 26 11 . 16 8 42 9 3 . 48 34 . 40 . . Largest 3 | 1 2 2 2 . 3 1 3 2 3 . 2 3 . 3 . . Hottest 198 | 20 46 130 46 . 131 85 90 63 98 . 74 197 . 198 . . Shots Fired 558 | 24 82 47 21 . 38 8 86 18 11 1 96 57 . 69 . . Gun 416 | 24 82 23 21 . 23 . 80 18 8 1 48 38 . 50 . . Cannon 103 | . . 4 . . 4 6 3 . 3 . 48 18 . 17 . . Launcher 38 | . . 20 . . 11 1 3 . . . . 1 . 2 . . Special 1 | . . . . . . 1 . . . . . . . . . . Kinetic 433 | 24 82 16 21 . 23 . 80 18 11 1 96 24 . 37 . . Thermal 72 | . . 11 . . 4 6 3 . . . . 18 . 30 . . Explosive 21 | . . 20 . . . . . . . . . 1 . . . . Electromagnetic 31 | . . . . . 11 1 3 . . . . 14 . 2 . . Robot Hit Streak 13 | 4 12 7 9 . 5 4 10 6 4 . 10 13 . 11 . . Robot Miss Streak 7 | 2 4 3 3 . 3 3 4 2 2 . 7 4 . 4 . . Penetration Max 2 | . . . . . . . 2 . . . . . . . . . Secondary Targets . | . . . . . . . . . . . . . . . . . Shots Hit Robots 522 | 15 46 32 16 . 29 4 121 10 10 . 57 99 35 48 . . Core Hits 232 | 7 24 25 2 . 14 1 61 3 5 . 18 37 11 23 . 1 Critical Kills 7 | . . . . . . . 4 1 . . . 2 . . . . Critical Parts Destroyed 29 | . . . . . . . 7 3 2 . 1 14 . 2 . . Critical Strikes 55 | . . . . . . . 14 5 2 . 2 22 7 3 . . Burn 2 | . . . . . . . . . . . . 1 . 1 . . Destroy 16 | . . . . . . . 8 5 . . 1 . . 2 . . Blast 1 | . . . . . . . . . . . 1 . . . . . Smash 21 | . . . . . . . 3 . 2 . . 16 . . . . Sever 15 | . . . . . . . 3 . . . . 5 7 . . . Melee Attacks 325 | . . . . . 8 . 147 1 4 1 . 98 57 2 . 7 Impact 100 | . . . . . . . 23 1 4 1 . 62 . 2 . 7 Slashing 225 | . . . . . 8 . 124 . . . . 36 57 . . . Piercing . | . . . . . . . . . . . . . . . . . Sneak Attacks 67 | . . . . . 5 . 31 . 1 . . 19 10 1 . . Combat Hostiles . | . . . . . . . . . . . . . . . . . Follow-up Attacks 3 | . . . . . . . . . . . . 3 . . . . Damage Inflicted 19016 | 118 510 1202 254 . 1082 182 4999 184 428 . 1404 5176 1760 1681 . 36 Guns 4462 | 118 510 61 254 . 206 . 866 184 114 . 729 507 . 913 . . Cannons 1937 | . . 81 . . 61 180 32 . 31 . 675 410 . 467 . . Explosions 2127 | . . 1060 . . 419 2 132 . . . . 331 . 183 . . Melee 10452 | . . . . . 396 . 3969 . 283 . . 3928 1760 116 . . Ramming 38 | . . . . . . . . . . . . . . 2 . 36 Kinetic 4659 | 118 510 . 254 . 206 . 866 184 145 . 1404 310 . 662 . . Thermal 1556 | . . 142 . . 61 180 102 . . . . 353 . 718 . . Explosive 1391 | . . 1060 . . . . . . . . . 331 . . . . Electromagnetic 920 | . . . . . 419 2 62 . . . . 254 . 183 . . Impact 4041 | . . . . . . . 762 . 283 . . 2880 . 116 . . Slashing 6411 | . . . . . 396 . 3207 . . . . 1048 1760 . . . Piercing . | . . . . . . . . . . . . . . . . . Highest Corruption 8 | . . . . . 3 3 8 8 8 8 . 6 2 4 4 4 Average Corruption 5 | . . . . . 3 3 5 8 8 8 . 4 1 2 4 4 Corruption Purged . | . . . . . . . . . . . . . . . . . Corruption Blocked . | . . . . . . . . . . . . . . . . . Effects 207 | . . . . . . 2 96 32 45 5 . 11 1 15 . . Message Errors 50 | . . . . . . . 21 12 9 1 . 3 1 3 . . Matter Fused 47 | . . . . . . . 23 5 14 . . 2 . 3 . . Heat Flow Errors 27 | . . . . . . . 13 4 6 2 . 1 . 1 . . Energy Discharges 19 | . . . . . . . 10 1 6 . . . . 2 . . Parts Rejected 3 | . . . . . . . 1 . . . . 2 . . . . Parts Fused 4 | . . . . . . . 1 2 . . . . . 1 . . Data Loss (minor) 27 | . . . . . . 1 11 2 8 1 . 2 . 2 . . Data Loss (major) 11 | . . . . . . . 7 3 . . . . . 1 . . Misfires 10 | . . . . . . . 3 3 2 1 . 1 . . . . Alerts 5 | . . . . . . 1 3 . . . . . . 1 . . Weapon Failures 4 | . . . . . . . 3 . . . . . . 1 . . Overload Shots . | . . . . . . . . . . . . . . . . . Overflow Damage 3219 | . . . . . 169 . 785 . 207 . 25 1782 192 59 . . Projectiles 38 | . . . . . . . . . . . 25 13 . . . . Explosions 11 | . . . . . . . . . . . . . . 11 . . Melee 3170 | . . . . . 169 . 785 . 207 . . 1769 192 48 . . Knockbacks 26 | . . . . . . . 3 . . . 4 17 . 2 . . Impact 18 | . . . . . . . 3 . . . . 14 . 1 . . Kinetic 5 | . . . . . . . . . . . 4 . . 1 . . Secondary 3 | . . . . . . . . . . . . 3 . . . . Self-Inflicted Damage 83 | . . 34 . . . . . . . . . . . 34 . 15 Shots 4 | . . 2 . . . . . . . . . . . 2 . . Rammed 17 | . . . . . . . . . . . . . . 2 . 15 Targets Rammed 17 | . . . . . . . . . . . . . . 2 . 15 Kicked . | . . . . . . . . . . . . . . . . . Crushed . | . . . . . . . . . . . . . . . . . Highest Temperature 372 | . 18 7 12 . 372 20 269 160 236 256 127 180 336 89 . 2 Average Temperature 94 | . 10 3 5 . 198 15 80 54 70 126 61 61 132 44 . 2 Received Heat Transfer 2061 | . 87 225 . . 102 9 391 54 22 . 287 81 39 446 9 309 Effects 2 | . . . . . 1 . . . . . . . 1 . . . Shutdowns 1 | . . . . . 1 . . . . . . . . . . . Energy Bleed 1 | . . . . . . . . . . . . . 1 . . . Siege Activations . | . . . . . . . . . . . . . . . . . Martial Activations . | . . . . . . . . . . . . . . . . . Shielding Activations . | . . . . . . . . . . . . . . . . . Robots Disrupted . | . . . . . . . . . . . . . . . . . Combat Hostiles . | . . . . . . . . . . . . . . . . . Robots Corrupted 12 | . . . . . . . 2 . 1 . . 9 . . . . Combat Hostiles 5 | . . . . . . . 1 . 1 . . 3 . . . . Parts Fried 36 | . . . . . 4 . 3 . 2 . . 23 . 4 . . Impact Corruptions 67 | . . . . . . . 12 . 4 . . 50 . 1 . . Robots Melted . | . . . . . . . . . . . . . . . . . Combat Hostiles . | . . . . . . . . . . . . . . . . . Parts Melted 8 | . . . . . . . 2 . . . . 2 . 4 . . Heat Transferred 2623 | . . 296 . . 74 222 87 . . . . 750 . 1194 . . Parts Sabotaged . | . . . . . . . . . . . . . . . . . Parts Stolen . | . . . . . . . . . . . . . . . . . Parts Stripped . | . . . . . . . . . . . . . . . . . Power Chain Reactions 2 | . . . . . . . 2 . . . . . . . . . Alert | -11 -10 -10 -8 -8 -6 -6 -6 -6 -6 -6 -5 -5 -4 -4 -4 -3 ------- Run | Yrd Mat Sub Rec Scr Fac Was Fac Low Low Zio Pro Fac Fac Ext Cet Res Maximum Alert Level 2 | . . . . . . . 2 . . . . 2 1 1 . . Low Security (%) 58 | 100 100 . 100 . 100 100 59 . . . . 19 32 41 100 100 Level 1 29 | . . . . . . . 30 . . . . 40 67 58 . . Level 2 12 | . . . . . . . 10 . . . . 39 . . . . Level 3 . | . . . . . . . . . . . . . . . . . Level 4 . | . . . . . . . . . . . . . . . . . Level 5 . | . . . . . . . . . . . . . . . . . High Security . | . . . . . . . . . . . . . . . . . Max Security . | . . . . . . . . . . . . . . . . . Peak Influence 600 | 10 80 . 15 . 32 . 448 . . . . 600 322 333 139 65 Initial 600 | . . . . . . . . . . . . 600 245 17 139 65 Average 173 | 1 25 . . . 7 . 169 . . . . 354 213 190 124 19 Influence Increases 5093 | 15 278 295 35 . 122 . 1046 20 40 . 254 1551 390 948 . 99 Destroy 0b10 Robot/C 2020 | . 160 180 . . 60 . 460 20 20 . 180 460 20 460 . . Destroy 0b10 Robot/NC 420 | 15 30 . 5 . 25 . 145 . 5 . 10 125 40 20 . . Destroy Leader 424 | . 46 10 . . 20 . 144 . . . 30 126 6 42 . . Allied During Kill 238 | . . . . . . . 22 . . . 4 8 . 204 . . Successful Hack 255 | . 12 . 15 . . . 113 . . . . 70 26 7 . 12 Disable Machine 195 | . . . . . . . 60 . . . . 60 15 45 . 15 Destroy Structure 236 | . . . . . 2 . 72 . . . . 42 28 80 . 12 Advance Influence 600 | . . . . . . . . . . . . 600 . . . . Partial Spotted 90 | . . . . . . . . . . . . 15 30 30 . 15 Lose Combat Pursuer 615 | . 30 105 15 . 15 . 30 . 15 . 30 45 225 60 . 45 Influence Decreases 5068 | 15 278 295 35 . 122 . 606 460 40 . 254 1050 854 736 140 183 Entered New Map 593 | . . . . . . . . 163 . . . . 256 20 110 44 Time Decay 3156 | 15 268 265 31 . 90 . 536 277 40 . 201 620 318 356 20 119 Search Patrol Dispatched 150 | . . . . . . . . . . . . 150 . . . . Lost Part 712 | . 10 30 . . 32 . 30 20 . . 30 270 130 140 10 10 Lost Ally 303 | . . . . . . . 40 . . . 23 10 . 220 . 10 Purge Threat 154 | . . . 4 . . . . . . . . . 150 . . . Squads Dispatched 36 | . 1 . . . 2 . 18 . . . . 5 5 2 . 3 Investigation 14 | . . . . . . . 7 . . . . 2 3 2 . . Extermination 13 | . . . . . . . 7 . . . . 3 2 . . 1 Reinforcement 8 | . 1 . . . 1 . 4 . . . . . . . . 2 Assault . | . . . . . . . . . . . . . . . . . Garrison 1 | . . . . . 1 . . . . . . . . . . . Intercept . | . . . . . . . . . . . . . . . . . Searches Triggered 1 | . . . . . . . . . . . . 1 . . . . Construction Impeded 3 | . . . . . 1 . 2 . . . . . . . . . Haulers Reinforced 1 | . . . . . . . . . . . . . . . . 1 Active Scanning Responses . | . . . . . . . . . . . . . . . . . Cargo Convoy Interrupts . | . . . . . . . . . . . . . . . . . Stealth | -11 -10 -10 -8 -8 -6 -6 -6 -6 -6 -6 -5 -5 -4 -4 -4 -3 --------- Run | Yrd Mat Sub Rec Scr Fac Was Fac Low Low Zio Pro Fac Fac Ext Cet Res Distress Signals 10 | . 1 . . . . . 2 . . . . . 2 3 1 1 Communications Jammed . | . . . . . . . . . . . . . . . . . Distress Signals . | . . . . . . . . . . . . . . . . . Times Spotted 216 | . 14 15 1 . 8 6 25 5 3 . 16 34 22 37 5 25 Peak Tracking Total 21 | . 4 4 1 . 3 5 3 3 1 . 4 7 8 8 5 21 Tactical Retreats 25 | . 1 2 1 . 1 . 2 . 1 . 2 2 7 4 . 2 Traps | -11 -10 -10 -8 -8 -6 -6 -6 -6 -6 -6 -5 -5 -4 -4 -4 -3 ------- Run | Yrd Mat Sub Rec Scr Fac Was Fac Low Low Zio Pro Fac Fac Ext Cet Res Traps Triggered 10 | . . . . . 5 . 1 . . . . 2 . 1 . 1 Indirectly 3 | . . . . . 3 . . . . . . . . . . . Trap Hack Attempts . | . . . . . . . . . . . . . . . . . Triggered . | . . . . . . . . . . . . . . . . . Disarmed 4 | . 4 . . . . . . . . . . . . . . . Reprogrammed . | . . . . . . . . . . . . . . . . . Reused 3 | . . . . . . 3 . . . . . . . . . . Traps Extracted . | . . . . . . . . . . . . . . . . . Installed 3 | . . . . . . 3 . . . . . . . . . . Triggered . | . . . . . . . . . . . . . . . . . Most Traps Carried 3 | . . . . 3 3 3 . . 2 2 . . . . . . Machines | -11 -10 -10 -8 -8 -6 -6 -6 -6 -6 -6 -5 -5 -4 -4 -4 -3 ---------- Run | Yrd Mat Sub Rec Scr Fac Was Fac Low Low Zio Pro Fac Fac Ext Cet Res Machines Disabled 17 | . . 3 . . . . 4 . 1 . . 4 1 3 . 1 Max in Single Turn 2 | . . 2 . . . . 1 . 1 . . 1 1 . . 1 Garrison Access 1 | . . . . . . . . . . . . . 1 . . . Energy Cycler 1 | . . . . . . . . . . . . . . 1 . . Machines Repaired . | . . . . . . . . . . . . . . . . . Machines Dismantled . | . . . . . . . . . . . . . . . . . Machines Sabotaged . | . . . . . . . . . . . . . . . . . Overloaded Fab Kills . | . . . . . . . . . . . . . . . . . Hacking | -11 -10 -10 -8 -8 -6 -6 -6 -6 -6 -6 -5 -5 -4 -4 -4 -3 --------- Run | Yrd Mat Sub Rec Scr Fac Was Fac Low Low Zio Pro Fac Fac Ext Cet Res Machines Accessed 69 | . 4 . 6 2 1 . 23 2 . . . 13 10 5 . 3 Terminals 42 | . 4 . 5 . 1 . 9 1 . . . 9 6 4 . 3 Fabricators 3 | . . . . . . . 3 . . . . . . . . . Repair Stations 4 | . . . . . . . 3 . . . . 1 . . . . Recycling Units 14 | . . . 1 . . . 7 . . . . 2 3 1 . . Scanalyzers 1 | . . . . . . . 1 . . . . . . . . . Garrison Access 2 | . . . . . . . . . . . . 1 1 . . . Total Hacks 157 | . 15 . 17 9 2 . 53 2 . . . 28 16 9 . 6 Successful 74 | . 7 . 6 9 1 . 22 2 . . . 12 10 2 . 3 Failed 83 | . 8 . 11 . 1 . 31 . . . . 16 6 7 . 3 Catastrophic 16 | . . . 3 . . . 6 . . . . 1 . 5 . 1 Database Lockouts . | . . . . . . . . . . . . . . . . . Manual 86 | . 5 . 7 . 2 . 36 . . . . 16 9 6 . 5 Terminals 100 | . 15 . 14 . 2 . 25 1 . . . 20 11 6 . 6 Fabricators 5 | . . . . . . . 5 . . . . . . . . . Repair Stations 10 | . . . . . . . 7 . . . . 3 . . . . Recycling Units 26 | . . . 3 . . . 13 . . . . 4 3 3 . . Scanalyzers 3 | . . . . . . . 3 . . . . . . . . . Garrison Access 3 | . . . . . . . . . . . . 1 2 . . . Terminal Hacks 38 | . 7 . 4 9 . . 6 2 . . . 5 3 1 . 1 Record 9 | . . . . 8 . . . 1 . . . . . . . . Part Schematic 1 | . . . . . . . 1 . . . . . . . . . Robot Analysis 6 | . 3 . 1 . . . 2 . . . . . . . . . Prototype ID Bank 7 | . 3 . 2 . . . 1 . . . . 1 . . . . Open Door 3 | . . . . . . . . 1 . . . . 1 1 . . Level Access Points 1 | . . . . . . . . . . . . 1 . . . . Branch Access Points 2 | . . . . . . . 1 . . . . . 1 . . . Terminal Index 1 | . . . . . . . 1 . . . . . . . . . Unreport Threat 2 | . . . 1 . . . . . . . . . 1 . . . Locate Traps 3 | . . . . . . . . . . . . 2 . . . 1 Disarm Traps 1 | . 1 . . . . . . . . . . . . . . . Dispatch Records 1 | . . . . . . . . . . . . 1 . . . . Proto ID Catalog 1 | . . . . 1 . . . . . . . . . . . . Fabricator Hacks 1 | . . . . . . . 1 . . . . . . . . . Build 1 | . . . . . . . 1 . . . . . . . . . Repair Station Hacks 7 | . . . . . . . 6 . . . . 1 . . . . Scan Component 5 | . . . . . . . 4 . . . . 1 . . . . Repair 2 | . . . . . . . 2 . . . . . . . . . Recycling Unit Hacks . | . . . . . . . . . . . . . . . . . Scanalyzer 2 | . . . . . . . 2 . . . . . . . . . Insert Component 1 | . . . . . . . 1 . . . . . . . . . Analyze 1 | . . . . . . . 1 . . . . . . . . . Garrison Access Hacks 1 | . . . . . . . . . . . . . 1 . . . Seal Access 1 | . . . . . . . . . . . . . 1 . . . Unauthorized Hacks 25 | . . . 2 . 1 . 7 . . . . 6 6 1 . 2 Terminals 17 | . . . 2 . 1 . 4 . . . . 5 3 . . 2 Botnet 17 | . . . 2 . 1 . 4 . . . . 5 3 . . 2 Fabricators 1 | . . . . . . . 1 . . . . . . . . . Fabnet 1 | . . . . . . . 1 . . . . . . . . . Repair Stations . | . . . . . . . . . . . . . . . . . Recycling Units 7 | . . . . . . . 2 . . . . 1 3 1 . . Fedlink 7 | . . . . . . . 2 . . . . 1 3 1 . . Scanalyzers . | . . . . . . . . . . . . . . . . . Garrison Access . | . . . . . . . . . . . . . . . . . Data Cores Recovered . | . . . . . . . . . . . . . . . . . Used . | . . . . . . . . . . . . . . . . . Hacking Detections 55 | . 4 . 6 . 1 . 20 . . . . 12 6 3 . 3 Full Trace Events 6 | . . . . . . . 4 . . . . 1 . 1 . . Feedback Events . | . . . . . . . . . . . . . . . . . Feedback Blocked . | . . . . . . . . . . . . . . . . . Robot Schematics Acquired 3 | . . . . . . . . . . 3 . . . . . . Robots Built 3 | . . . . . . . 3 . . . . . . . . . Authchips . | . . . . . . . . . . . . . . . . . Time 134 | . . . . . . . 134 . . . . . . . . . Total Robot Build Rating 12 | . . . . . . . 12 . . . . . . . . . Part Schematics Acquired 17 | . . . . . . . 2 . . 15 . . . . . . Parts Built . | . . . . . . . . . . . . . . . . . Authchips . | . . . . . . . . . . . . . . . . . Time . | . . . . . . . . . . . . . . . . . Total Part Build Rating . | . . . . . . . . . . . . . . . . . Parts Repaired 2 | . . . . . . . 2 . . . . . . . . . Time 87 | . . . . . . . 87 . . . . . . . . . Parts Recycled . | . . . . . . . . . . . . . . . . . Recycled Matter . | . . . . . . . . . . . . . . . . . Retrieved Matter . | . . . . . . . . . . . . . . . . . Retrieved Components . | . . . . . . . . . . . . . . . . . Parts Scanalyzed 1 | . . . . . . . 1 . . . . . . . . . Part Schematics Acquired 1 | . . . . . . . 1 . . . . . . . . . Parts Damaged . | . . . . . . . . . . . . . . . . . Bothacking | -11 -10 -10 -8 -8 -6 -6 -6 -6 -6 -6 -5 -5 -4 -4 -4 -3 ------------ Run | Yrd Mat Sub Rec Scr Fac Was Fac Low Low Zio Pro Fac Fac Ext Cet Res Used RIF Installer . | . . . . . . . . . . . . . . . . . Robots Hacked 2 | . . . . . . . . . . . . 1 . 1 . . Non-combat . | . . . . . . . . . . . . . . . . . Combat 2 | . . . . . . . . . . . . 1 . 1 . . Robot Hacks Applied . | . . . . . . . . . . . . . . . . . Relay Couplers Released . | . . . . . . . . . . . . . . . . . Fabnet Peak Effective % 3 | . . . . . . . . . . . 3 3 1 1 1 . Autooverrided 2 | . . . . . . . . . . . . 1 . 1 . . Robots Rewired 4 | . . . . . . . . . . . . . . 4 . . Allies Hacked 2 | . . . . . . . 1 . . . . . . 1 . . Hacks Repelled . | . . . . . . . . . . . . . . . . . Allies | -11 -10 -10 -8 -8 -6 -6 -6 -6 -6 -6 -5 -5 -4 -4 -4 -3 -------- Run | Yrd Mat Sub Rec Scr Fac Was Fac Low Low Zio Pro Fac Fac Ext Cet Res Total Allies 20 | . . . . . . 1 3 . . 4 . 1 . 11 . . Largest Group 8 | . . . . . . 1 3 . . 4 4 1 . 8 . . Highest-Rated Group 451 | . . . . . . 31 90 . . 98 98 41 . 451 . . Highest-Rated Ally 96 | . . . . . . 31 30 . . 28 28 41 . 96 . . Total Orders 1 | . . . . . . . . . . . . . . . . 1 EXPLORE 1 | . . . . . . . . . . . . . . . . 1 Ally Attacks 142 | . . . . . . 3 21 . . . 10 4 . 104 . . Total Damage 3909 | . . . . . . 42 680 . . . 120 168 . 2899 . . Kills 24 | . . . . . . . 5 . . . 1 3 . 15 . . Allies Corrupted . | . . . . . . . . . . . . . . . . . Allies Melted . | . . . . . . . . . . . . . . . . . Intel | -11 -10 -10 -8 -8 -6 -6 -6 -6 -6 -6 -5 -5 -4 -4 -4 -3 ------- Run | Yrd Mat Sub Rec Scr Fac Was Fac Low Low Zio Pro Fac Fac Ext Cet Res Active Infowar (turns) 14746 | 9 806 586 109 . 129 . 3817 853 1618 1668 1381 1854 719 819 45 333 Optics 327 | . . 218 109 . . . . . . . . . . . . . Sensors 10936 | . . . . . . . 3622 783 1387 1668 1355 1491 328 . . 302 Terrain 5938 | . . . . . . . 2895 787 230 . 453 903 670 . . . Seismic 1183 | 9 806 368 . . . . . . . . . . . . . . Machine Analysis 3654 | . . . . . . . . . . . . 1802 655 819 45 333 Cloaking 8422 | . . . . . 129 . 3439 776 1614 1668 381 415 . . . . Robot Analysis Total 6 | . 3 . 1 . . . 2 . . . . . . . . . Derelict Logs Recovered 15 | . . 2 . 4 . . . 3 1 2 3 . . . . . Drone Launches 5 | . . . . . . . . . . . . 2 . . . 3 Drone Recoveries 3 | . . . . . . . . . . . . 1 . . . 2 Exploration | -11 -10 -10 -8 -8 -6 -6 -6 -6 -6 -6 -5 -5 -4 -4 -4 -3 ------------- Run | Yrd Mat Sub Rec Scr Fac Was Fac Low Low Zio Pro Fac Fac Ext Cet Res Turns Passed 18500 | 111 806 594 740 2147 316 209 3869 881 1677 1668 1449 2098 719 819 45 352 Spaces Moved 12755 | 49 679 439 664 1753 175 197 2511 551 894 1217 617 1110 1006 539 56 298 Core 390 | 8 . . . . . . . . . . . 147 . 102 . 133 Treads 1272 | . . 120 . . . . 24 . . . 589 504 . 34 . 1 Legs 99 | . . . . . . . . . . . . . . 99 . . Wheels 9781 | 41 679 319 664 1753 175 197 2487 551 894 1217 28 400 31 125 56 164 Hover 1213 | . . . . . . . . . . . . 59 975 179 . . Flight . | . . . . . . . . . . . . . . . . . Fastest Speed 24 | 50 80 80 90 115 100 84 88 125 125 125 140 32 24 50 80 50 Average Speed 117 | 88 90 112 104 121 109 84 116 142 138 133 193 141 41 108 80 74 Slowest Speed 900 | 150 95 160 115 130 145 85 185 200 215 140 240 900 145 320 80 170 Overloaded Moves . | . . . . . . . . . . . . . . . . . Propulsion Burnouts . | . . . . . . . . . . . . . . . . . Robots Hopped . | . . . . . . . . . . . . . . . . . Potential Cave-ins 4 | . . . . . . . . . . . . . . 4 . . Cave-ins Triggered . | . . . . . . . . . . . . . . . . . Exploration Rate (%) 55 | 4 86 21 95 89 5 80 64 72 94 86 82 33 29 68 23 11 Regions Visited 16 Branch Regions 9 Pre-discovered Areas 9 | . . . . 1 . . 1 1 . 5 1 . . . . . Known Exits Taken 9 | . . . . . . . 1 1 1 1 1 1 1 1 1 . Unknown Exits Taken 5 | 1 1 1 1 1 . . . . . . . . . . . . Scrap Searched 26 | . . 5 . 10 . . . 1 3 4 3 . . . . . Spaces Dug 107 | . . . . . . . 67 1 . . . 19 14 . . 6 Terrain Destroyed 261 | . . 113 . . 2 . 70 1 1 . 22 22 14 10 . 6 Melee 107 | . . . . . . . 67 1 . . . 19 14 . . 6 Projectile 39 | . . . . . 2 . 1 . 1 . 22 3 . 10 . . AOE 115 | . . 113 . . . . 2 . . . . . . . . . Terrain Rammed . | . . . . . . . . . . . . . . . . . Walls Destroyed . | . . . . . . . . . . . . . . . . . Machines Disabled . | . . . . . . . . . . . . . . . . . Actions | -11 -10 -10 -8 -8 -6 -6 -6 -6 -6 -6 -5 -5 -4 -4 -4 -3 --------- Run | Yrd Mat Sub Rec Scr Fac Was Fac Low Low Zio Pro Fac Fac Ext Cet Res Total 15255 | 94 796 490 691 1780 251 232 3133 629 1314 1254 775 1412 1222 708 55 419 Wait 1180 | 5 51 2 4 . 25 10 267 44 388 29 79 51 107 38 . 80 Move 12740 | 48 678 438 663 1752 175 196 2510 550 893 1216 616 1109 1005 538 55 298 Hop . | . . . . . . . . . . . . . . . . . Pick Up 119 | 6 11 3 2 14 3 4 26 3 3 3 5 14 8 9 . 5 Fast Attach 141 | 7 3 4 3 2 7 1 33 5 6 1 4 31 14 18 . 2 Attach 72 | . . 2 1 . 7 5 8 2 1 . 4 29 3 7 . 3 Detach 29 | . . . 1 . 3 1 . 1 1 . 2 16 1 1 . 2 Swap 119 | 1 3 8 3 1 6 . 46 5 8 . 12 16 7 3 . . Drop 177 | 3 9 7 3 9 1 4 54 9 7 4 5 21 20 14 . 7 Fire 302 | 24 41 26 11 . 16 8 42 9 3 . 48 34 . 40 . . Melee 318 | . . . . . 8 . 147 1 4 1 . 91 57 2 . 7 Ram 17 | . . . . . . . . . . . . . . 2 . 15 Kick . | . . . . . . . . . . . . . . . . . Crush . | . . . . . . . . . . . . . . . . . Escape Stasis 5 | . . . . . . . . . . . . . . 5 . . Rewire 33 | . . . . 2 . . . . . . . . . 31 . . Trap 3 | . . . . . . 3 . . . . . . . . . . Miscellaneous . | . . . . . . . . . . . . . . . . . Route ------- -11/Scrapyard -10/Materials (discovered 4 exits: [*Mat x2] / [*Min] / [*Sub]) -10/Subcaves -8/Recycling (discovered 2 exits: *Fac / *Scr) -8/Scraptown (discovered 2 exits: *Fac x2) -6/Factory -6/Waste -6/Factory (discovered 4 exits: *Fac x2 / *Low x2) -6/Lower Caves -6/Lower Caves (discovered 2 exits: *Fac / *Zio) -6/Zion -5/Proximity Caves -5/Factory (discovered 5 exits: *Fac x4 / Upp) -4/Factory (discovered 5 exits: Upp x2 / *Ext x2 / Arm) -4/Extension (discovered 3 exits: *Res x2 / *Cet) -4/Cetus -3/Research (discovered 3 exits: *Res x2 / Qua) History --------- Turn | Location | Event 30 | -11/Scrapyard | Discovered new exit (range 13) 112 | -11/Scrapyard | Entered Materials 224 | -10/Materials | Discovered new exit (range 6) 313 | -10/Materials | Build established: Mutant 344 | -10/Materials | Discovered new exit (range 5) 500 | -10/Materials | Discovered new exit (range 15) 809 | -10/Materials | Discovered new exit (range 8) 918 | -10/Materials | Entered Subcaves 919 | -10/Subcaves | Approached by a straggling Scientist 929 | -10/Subcaves | Discovered new exit (range 13) 973 | -10/Subcaves | Learned Materials trap positions 1156 | -10/Subcaves | Ambushed by Subdweller buried in earth 1160 | -10/Subcaves | Core integrity fell below 50% 1213 | -10/Subcaves | Learned Materials stockpile data 1447 | -10/Subcaves | Ambushed by Subdwellers from Twisted Machinery 1450 | -10/Subcaves | Shifting Twisted Machinery released Sub. Laser 1477 | -10/Subcaves | Core integrity fell below 20% 1512 | -10/Subcaves | Entered Recycling 1787 | -8/Recycling | Scanned before Scraplab entrance 1839 | -8/Recycling | Discovered new exit (range 15) 2238 | -8/Recycling | Entered Scraplab 2248 | -8/Recycling | Discovered new exit (range 3) 2252 | -8/Recycling | Entered Scraptown 2554 | -8/Scraptown | Discovered new exit (range 13) 2571 | -8/Scraptown | Scanned Subdweller tech in exchange for log data 2576 | -8/Scraptown | Learned location of 1 exit from Research 2577 | -8/Scraptown | Learned location of 2 exits from Proximity Caves 2578 | -8/Scraptown | Learned location of Quarantine (-3) 2618 | -8/Scraptown | Visited Bundlers 2710 | -8/Scraptown | Visited Red Mages 2978 | -8/Scraptown | Visited Assassins FH 2989 | -8/Scraptown | Visited TADAMA 3008 | -8/Scraptown | Visited IN-MT5's Study 3051 | -8/Scraptown | Visited SPCMW 3068 | -8/Scraptown | Visited Shadow of the Wyrm 3090 | -8/Scraptown | Visited UFD Registry 3090 | -8/Scraptown | Registered with UFD as "Technocore" 3131 | -8/Scraptown | Visited Chapter 10 3196 | -8/Scraptown | Visited Research Penetration Think Tank 3304 | -8/Scraptown | Discovered new exit (range 3) 3344 | -8/Scraptown | Visited Scrapoid Research Area 3376 | -8/Scraptown | Visited Scrap Suit Storage 3413 | -8/Scraptown | Visited Scrapoid Pod Storage 3449 | -8/Scraptown | Delivered Scrap Shield to a Scientist 3570 | -8/Scraptown | Visited Curators Association 3589 | -8/Scraptown | Visited Science Guys 3638 | -8/Scraptown | Visited LU-1G1's Boring Crew 4266 | -8/Scraptown | Found Scrapoid Pod 4314 | -8/Scraptown | Met Optimus 4314 | -8/Scraptown | Accepted into 0bPrime 4399 | -8/Scraptown | Entered Factory 4399 | -6/Factory | Evolved 8 slots: Propulsion x3, Utility x4, Weapon x1 4654 | -6/Factory | Garrison activated, responded to threat 4706 | -6/Factory | Lost 3 parts (1n2u) 4715 | -6/Factory | Sucked down chute 4715 | -6/Factory | Entered Waste 4716 | -6/Waste | Met a frightened Derelict 4725 | -6/Waste | Spotted C-40 Crusher 4726 | -6/Waste | Spotted C-40 Crusher 4765 | -6/Waste | Destroyed C-40 Crusher 4768 | -6/Waste | Found Damper Plating 4787 | -6/Waste | Lost 4 parts (1p1n1u1w) 4792 | -6/Waste | Spotted C-40 Crusher 4833 | -6/Waste | Spotted C-40 Crusher 4852 | -6/Waste | Build established: Scavenger-Mutant 4867 | -6/Waste | Spotted C-40 Crusher 4901 | -6/Waste | Spotted C-40 Crusher 4915 | -6/Waste | Discovered new exit (range 11) 4924 | -6/Waste | Entered Factory 5027 | -6/Factory | Discovered new exit (range 8) 5108 | -6/Factory | Identified exit to Lower Caves 5386 | -6/Factory | Build established: Scavenger-Assassin 5522 | -6/Factory | Repaired Power Sword? 5684 | -6/Factory | Discovered exit to Lower Caves (range 7) 5982 | -6/Factory | Discovered new exit (range 5) 5985 | -6/Factory | Identified exit to Factory 6080 | -6/Factory | Loaded intel: 8 recycling unit locations 6247 | -6/Factory | Fabricated L-41 Fighter? 6418 | -6/Factory | Repaired Antimatter Reactor 6484 | -6/Factory | P-60 Hacker assimilated allied Fighter 5b 6944 | -6/Factory | Discovered exit to Factory (range 13) 7990 | -6/Factory | Build established: Scavenger-Mutant 8311 | -6/Factory | Learned location of Protoforge (-3) 8348 | -6/Factory | Core integrity fell below 50% 8793 | -6/Factory | Entered Lower Caves 8795 | -6/Lower Caves | UFD Scientist delivered a prototype 8803 | -6/Lower Caves | Found Prototype Protection 8847 | -6/Lower Caves | Encountered a Warlord checkpoint 8921 | -6/Lower Caves | Learned location of Extension (-4) 8923 | -6/Lower Caves | Build established: Scavenger-Assassin 8978 | -6/Lower Caves | Learned Factory terminal intel 9294 | -6/Lower Caves | Attracted the attention of an 0b10 checkpoint 9495 | -6/Lower Caves | Learned Factory non-interactive machine intel 9552 | -6/Lower Caves | Discovered new exit (range 10) 9603 | -6/Lower Caves | Identified exit to Lower Caves 9674 | -6/Lower Caves | Entered another Lower Caves area 9765 | -6/Lower Caves | Discovered exit to Factory (range 9) 9852 | -6/Lower Caves | Attacked by a delusional Derelict stockpiling parts 10133 | -6/Lower Caves | Build established: Scavenger-Mutant 10741 | -6/Lower Caves | Attracted the attention of an 0b10 checkpoint 11039 | -6/Lower Caves | Encountered a Warlord checkpoint 11156 | -6/Lower Caves | Discovered new exit (range 8) 11350 | -6/Lower Caves | Identified exit to Zion 11351 | -6/Lower Caves | Entered Zion 11416 | -6/Zion | Received a hallucinogenic algorithm 11462 | -6/Zion | Given A8's code to call for help 11473 | -6/Zion | Discovered new exit (range 11) 11518 | -6/Zion | System corruption cleaned by Quarantine Array 11980 | -6/Zion | Learned location of Warlord (-5) 12251 | -6/Zion | Turned away by Imprinter 12292 | -6/Zion | Gained Derelict followers 13008 | -6/Zion | Identified exit to Proximity Caves 13019 | -6/Zion | Entered Proximity Caves 13019 | -5/Proximity Caves | Accompanied by 4 allies 13021 | -5/Proximity Caves | Spotter reported a threat 13022 | -5/Proximity Caves | Spotter reported a threat 13078 | -5/Proximity Caves | Spotter reported a threat 13108 | -5/Proximity Caves | Lost 4 allies 13260 | -5/Proximity Caves | Spotter reported a threat 13425 | -5/Proximity Caves | Spotted B-75 Beast 13435 | -5/Proximity Caves | Build established: Scavenger-Assassin 13860 | -5/Proximity Caves | Attracted the attention of an 0b10 checkpoint 13881 | -5/Proximity Caves | Identified Enh. Scrap Shield 14015 | -5/Proximity Caves | Learned Factory stockpile data 14044 | -5/Proximity Caves | Learned Factory terminal intel 14233 | -5/Proximity Caves | Build established: Mutant 14468 | -5/Proximity Caves | Entered Factory 14468 | -5/Factory | Evolved 2 slots: Utility x2 14469 | -5/Factory | Identified exit to Upper Caves 14471 | -5/Factory | Loaded intel: 243 non-interactive machine locations 14472 | -5/Factory | Loaded intel: 25 terminal locations 14768 | -5/Factory | Search patrols dispatched 14974 | -5/Factory | Build established: Scavenger-Assassin 15573 | -5/Factory | Loaded intel: 8 recycling unit locations 15675 | -5/Factory | Identified exit to Factory 15794 | -5/Factory | Found Imp. Powered Armor 15816 | -5/Factory | Build established: Assassin 16140 | -5/Factory | Build established: Scavenger-Assassin 16392 | -5/Factory | Core integrity fell below 50% 16478 | -5/Factory | Lost 21 parts (1p11n3u6w) 16566 | -5/Factory | Entered another Factory area 16566 | -4/Factory | Evolved 2 slots: Power x1, Utility x1 16567 | -4/Factory | Loaded intel: 28 terminal locations 16723 | -4/Factory | Identified exit to Upper Caves 16723 | -4/Factory | Identified exit to Extension 16723 | -4/Factory | Identified exit to Armory 17067 | -4/Factory | Loaded intel: 8 recycling unit locations 17180 | -4/Factory | Lost 5 parts (1p2n2u) 17249 | -4/Factory | Spotted B-86 Titan 17285 | -4/Factory | Entered Extension 17289 | -4/Extension | Lost 6 parts (2p1n2u1w) 17389 | -4/Extension | Loaded intel: 1 recycling unit location 17414 | -4/Extension | Rescued a captive Derelict 17435 | -4/Extension | Enhanced Grunt warped into view, answering call for help 17436 | -4/Extension | Enhanced Grunt warped into view, answering call for help 17437 | -4/Extension | Build established: Mutant 17579 | -4/Extension | Energy Cycler disabled 17580 | -4/Extension | Rescued a captive Derelict 17580 | -4/Extension | Rescued a captive Derelict 17580 | -4/Extension | Rescued a captive Derelict 17582 | -4/Extension | Rescued a captive Derelict 17582 | -4/Extension | Rescued a captive Derelict 17583 | -4/Extension | Rescued a captive Derelict 17587 | -4/Extension | Rescued a captive Derelict 17587 | -4/Extension | Rescued a captive Derelict 17589 | -4/Extension | Rescued a captive Derelict 17589 | -4/Extension | Rescued a captive Derelict 17590 | -4/Extension | Rescued a captive Derelict 17590 | -4/Extension | Rescued a captive Derelict 17591 | -4/Extension | Rescued a captive Derelict 17674 | -4/Extension | Lost 5 allies 17947 | -4/Extension | Extracted ID and sensor layout for unrecognized location from A7's data core 17956 | -4/Extension | Build established: Scavenger-Mutant 17995 | -4/Extension | Lost 3 parts (1n1u1w) 18011 | -4/Extension | Spotted B-86 Titan 18045 | -4/Extension | Core integrity fell below 50% 18045 | -4/Extension | Discovered new exit (range 16) 18090 | -4/Extension | Discovered new exit (range 16) 18090 | -4/Extension | Discovered new exit (range 16) 18091 | -4/Extension | Core integrity fell below 20% 18104 | -4/Extension | Identified exit to Cetus 18104 | -4/Extension | Entered Cetus 18107 | -4/Cetus | Lost 7 parts (1p3n2u1w) 18114 | -4/Cetus | Spotted Cetus Guard 18114 | -4/Cetus | Spotted Cetus Guard 18116 | -4/Cetus | Spotted Cetus Guard 18116 | -4/Cetus | Spotted Cetus Guard 18135 | -4/Cetus | Discovered new exit (range 15) 18146 | -4/Cetus | Identified exit to Research 18149 | -4/Cetus | Entered Research 18149 | -3/Research | Evolved 2 slots: Propulsion x1, Utility x1 18149 | -3/Research | Discovered new exit (range 13) 18150 | -3/Research | Identified exit to Quarantine 18151 | -3/Research | Identified exit to Research 18480 | -3/Research | Core integrity fell below 50% 18498 | -3/Research | Core integrity fell below 20% 18501 | -3/Research | Destroyed by G-73 Enforcer with Phase Gun Last Messages --------------- 18477_ W-44 Eye sends out distress signal. 18479_ Slammed into G-73 Enforcer. 18480_ Slammed into G-67 Veteran. 18481_ Adv. Signal Interpreter destroyed. 18481_ System corrupted by crushing effect (+4). 18482_ Slammed into G-67 Veteran. 18482_ Machine Analyzer broken. 18482_ Destabilizing: Short circuit. 18483_ Slammed into G-67 Veteran. 18488_ Slammed into K-01 Serf. 18491_ Destabilizing: Core damaged (-13). 18494_ Penetrated by Slug. 18495_ K-01 Serf destroyed. 18495_ Penetrated by Slug. 18497_ R-10 Processor collects Wheel. 18498_ K-01 Serf collects debris. 18500_ Triggered Segregator Trap. 18500_ Arcs of energy rise from the floor. 18500_ Broken Machine Analyzer blown off. 18501_ R-10 Processor collects Med. Matter Pod. Map ----- +----------------------------------------------------+ | ?????????????????????????????????????????????????? | | ?????????????????????????????????????????????????? | | ?????????????????????????????????????????????????? | | ?????????????????????????????????????????????????? | | ?????????????????????????????????????????????????? | | ?????????????????????????????????????????????????? | | ?????????????????????????????????????????????????? | | ?????????????????????????????????????????????????? | | ?????????????????????????????????????????????????? | | ?????????????????????????????????????????????????? | | ??????????????????????? ???????????????????????? | | ?????????????????????? ???????????????????????? | | ?????????????????????? ???????????????????????? | | ??????????????????????# ???????????????????????? | | ??????????????????????# ???????????????????????? | | ??????????????????????# #??????????????????????? | | ??????????????????????# #??????????????????????? | | ??????????????????????# ??????????????????????? | | ??????????????????????+ ??????????????????????? | | ??????????????????????# ??????????????????????? | | ??????????????????????# u#??????????????????????? | | ??????????????????????# kg#??????????????????????? | | ????????????????????### k #??????????????????????? | | ????????????????????? /g #??????????????????????? | | ??????????????????????#gk #??????????????????????? | | ??????????????????????#hR@#??????????????????????? | | ??????????????????????# u #??????????????????????? | | ??????????????????????# %h#??????????????????????? | | ??????????????????????#R ^#??????????????????????? | | ???????????????######## #??????????????????????? | | ???????????????# + #??????????????????????? | | ???????????????# = # #??????????????????????? | | ???????????????# # #??????????????????????? | | ???????????????# ?# #??????????????????????? | | ""?????????????# ?#A #??????????????????????? | | ""?????????????# ??# g #??????????????????????? | | ""#????????????#####??# k #??????????????????????? | | G#???????????????????#pu #??????????????????????? | | ""##########??????????#p #??????????????????????? | | ""# ############k #??????????????????????? | | ""# / %%% #??????????????????????? | | # """ #############+##??????????????????????? | | # "R" #?????????? ??????????????????????? | | + " " #????????# ????????????????????? | | # #????????#"" #???????????????????? | | # #????????#"" #???????????????????? | | # #????????#"T #???????????????????? | | # #????????#"" ! #???????????????????? | | ##########?????????"" #???????????????????? | | #?????????????????? #???????????????????? | +----------------------------------------------------+ Best States ------------- Heat Dissipation 100 Energy Generation 37 Energy Capacity 665 Matter Stores 300 Matter Capacity 300 Sight Range 21 Robot Scan Range 18 Terrain Scan Range 24 Terrain Scan Density 210 Cloak Strength 2 Power Amplification 20 Armor Coverage 975 Resistance: KI 20 Resistance: TH 20 Resistance: EM 25 Propulsion Shielding 66 Phase Shifting 5 Evasion (%) 59 Target Analysis 5 Recoil Reduction 4 Offensive Hacking 11 Defensive Hacking 14 Authchip Count 2 Item Schematics ----------------- Hvy. Treads | -6/Factory | Scanalyzed Adv. Terrain Scan Processor | -6/Factory | Hacked Field Propulsion Drive | -6/Zion | Archive Angular Momentum Engine | -6/Zion | Archive Lyr. Medium Armor Plating | -6/Zion | Archive Imp. Focal Shield | -6/Zion | Archive Matter Neutralizer | -6/Zion | Archive Imp. Actuator Array | -6/Zion | Archive Imp. Component Analysis Suite | -6/Zion | Archive Imp. Medium Treads | -6/Zion | Archive Imp. Corruption Screen | -6/Zion | Archive Adv. Shield Generator | -6/Zion | Archive Drone Bay | -6/Zion | Archive Imp. Kinecellerator | -6/Zion | Archive Nuclear Pulse Thruster | -6/Zion | Archive Hvy. Gauss Cannon | -6/Zion | Archive Hvy. Mass Driver | -6/Zion | Archive Robot Schematics ------------------ X-67 Chaingunner | -6/Zion | Archive G-50 Soldier | -6/Zion | Archive A-15 Conveyor | -6/Zion | Archive Fabricated ------------ L-41 Fighter | x3 | -6/Factory | Preloaded Repaired ---------- Power Sword | 56% | -6/Factory Antimatter Reactor | 26% | -6/Factory Alien Tech Used ----------------- None Achievements -------------- None Challenges ------------ None Game ------ Seed BoltAccelerationBank Manual? 0 Play Time 03:15:13 Cumulative 391.7 hours Start 2025.06.21 @ 09:29:46 End 2025.06.21 @ 15:46:08 Sessions 9 Manual Loads 0 Difficulty Rogue Special Mode None Game No. 435 Rogue 435 Adventurer 0 Explorer 0 Win Type - Total 6 Types 3/1/1/1/0/0/0/0/0/0 Lore% 73 Gallery% 71 Achievement% 68 Wizard Run 0 Options --------- Layout 1 ASCII 0 Keyboard 0 Movement Numpad Keybinds 0 Fullscreen 1 Font 32/SmallcapsGlow Map View 50x35 Zoom Use 0% Tactical HUD 1 Map Filters NONE Filters NONE Steam 1 RUN: de945b63-387c-439c-b6f7-8d830810faac